bitfinex/quotes_SOLUSD_20251030
["timestamp","ask_amount","ask_price","bid_price","bid_amount"]
[1761807017019,0.72,195.07,195.03,0.2]
[1761807017330,3.1546118,195.05,195.03,0.2]
[1761807017536,3.1546118,195.04,195.03,0.2]
[1761807018640,8.2817652,195.04,195.03,0.2]
[1761807018837,9.0017652,195.04,195.03,0.2]
[1761807019628,3.1546118,195.04,195.03,0.2]
[1761807019822,5.12665286,195.06,195.03,0.2]
[1761807020143,3.1546118,195.04,195.03,0.2]
[1761807022411,3.1546118,195.05,195.03,0.2]
[1761807023143,3.1546118,195.04,195.03,0.2]
[1761807024550,3.8646118,195.04,195.03,0.2]
[1761807024715,8.9917652,195.04,195.03,0.2]
[1761807025329,8.2817652,195.04,195.03,0.2]
[1761807026016,8.9917652,195.04,195.03,0.2]
[1761807031229,8.2817652,195.04,195.03,0.2]
[1761807031441,20.592,195.06,195.03,0.2]
[1761807031639,3.1546118,195.04,195.03,0.86]
[1761807031848,3.1546118,195.04,195.03,0.2]
[1761807032152,3.8646118,195.04,195.03,0.2]
[1761807033237,8.9917652,195.04,195.03,0.2]
[1761807035961,8.2817652,195.04,195.03,0.2]
[1761807036137,3.1546118,195.04,195.03,0.2]
[1761807036340,8.2817652,195.04,195.03,0.2]
[1761807037066,8.9917652,195.04,195.03,0.2]
[1761807039243,8.2817652,195.04,195.03,0.2]
[1761807039446,26.42885288,195.06,195.03,0.2]
[1761807039661,3.1546118,195.04,195.03,0.2]
[1761807039968,3.1546118,195.04,195.03,0.86]
[1761807040155,3.1546118,195.04,195.03,0.2]
[1761807042071,3.1546118,195.04,195.03,0.86]
[1761807042860,3.1546118,195.04,195.03,0.2]
[1761807044056,8.9917652,195.04,195.03,0.2]
[1761807046379,12.1708617,195.04,195.03,0.2]
[1761807047465,20.592,195.06,195.03,0.2]
[1761807047466,5.83693246,195.05,195.03,0.2]
[1761807047662,3.1546118,195.05,195.03,0.2]
[1761807048883,8.28164668,195.05,195.03,0.2]
[1761807049062,8.28164668,195.05,195.03,0.86]
[1761807049063,3.1546118,195.05,195.03,0.86]
[1761807049265,8.28125025,195.06,195.03,0.86]
[1761807049684,8.28125025,195.06,195.03,0.2]
[1761807049885,3.8646118,195.05,195.03,0.2]
[1761807050086,6.34048709,195.05,195.03,0.2]
[1761807050270,3.1546118,195.05,195.04,0.66]
[1761807050475,3.1546118,195.05,195.03,0.86]
[1761807050875,3.1546118,195.05,195.03,0.2]
[1761807051975,8.28150437,195.05,195.03,0.2]
[1761807052180,3.8646118,195.04,195.03,0.2]
[1761807052362,3.1546118,195.04,195.03,0.2]
[1761807052969,5.1271534,195.04,195.03,0.2]
[1761807053186,8.9817652,195.04,195.03,0.2]
[1761807053392,12.17272386,195.04,195.03,0.2]
[1761807053765,11.47272386,195.04,195.03,0.2]
[1761807053993,3.1546118,195.04,195.03,0.2]
[1761807054488,8.2817652,195.04,195.03,0.2]
[1761807054692,8.9817652,195.04,195.03,0.2]
[1761807056079,12.18515032,195.04,195.03,0.2]
[1761807057494,11.05334489,195.04,195.03,0.2]
[1761807062295,20.592,195.01,194.98,0.2]
[1761807062487,2.02280637,194.99,194.98,0.2]
[1761807062881,2.72280637,194.99,194.98,0.2]
[1761807063179,5.92830709,194.99,194.98,0.2]
[1761807064102,11.05677521,194.99,194.97,0.2]
[1761807064303,5.92830709,194.98,194.97,0.2]
[1761807064520,5.92392949,194.98,194.97,0.2]
[1761807065401,7.85153752,194.98,194.97,0.2]
[1761807067587,17.78252678,194.98,194.97,1e-08]
[1761807067788,17.78252678,194.98,194.91,0.2]
[1761807067789,20.592,194.94,194.91,0.2]
[1761807067997,33.80268355,194.98,194.91,0.2]
[1761807067998,0.7,194.97,194.92,0.72]
[1761807068206,2.02280637,194.94,194.92,0.72]
[1761807068882,2.02280637,194.96,194.92,0.72]
[1761807069086,2.02280637,194.97,194.92,0.72]
[1761807069302,7.15153752,194.98,194.92,0.72]
[1761807069899,2.02280637,194.97,194.92,0.72]
[1761807070298,2.02280637,194.96,194.92,0.72]
[1761807070492,2.02280637,194.97,194.92,0.72]
[1761807070912,7.15153752,194.98,194.92,0.72]
[1761807071916,13.52068375,195.0,194.92,0.72]
[1761807071917,2.02280637,194.97,194.92,0.72]
[1761807073509,5.12846812,194.99,194.92,0.72]
[1761807073510,2.02280637,194.96,194.92,0.72]
[1761807073701,2.02280637,194.97,194.92,0.72]
[1761807074105,13.50068375,195.06,194.95,2.02280637]
[1761807074310,2.02280637,195.04,194.97,2.02280637]
[1761807074615,2.02280637,195.04,194.98,0.71]
[1761807075125,2.02280637,195.05,194.98,0.71]
[1761807075619,2.02280637,195.05,194.98,2.73280637]
[1761807075789,2.02280637,195.05,194.99,0.71]
[1761807076304,5.8071534,195.04,194.99,0.71]
[1761807076510,2.02280637,195.02,194.96,0.71]
[1761807076710,2.02280637,195.0,194.92,12.60280637]
[1761807076913,2.02280637,195.0,194.94,0.71]
[1761807077424,2.02280637,195.01,194.94,0.71]
[1761807078193,7.15074852,195.01,194.94,0.71]
[1761807078624,7.15074852,195.01,194.94,2.73280637]
[1761807079004,7.15074852,195.01,194.95,0.71]
[1761807079205,7.15046039,195.03,194.96,2.02280637]
[1761807079716,5.1271933,195.04,194.98,2.02280637]
[1761807080236,7.14969641,195.06,194.99,0.71]
[1761807080694,7.14910594,195.08,195.0,2.02280637]
[1761807080896,5.12629957,195.08,195.01,2.02280637]
[1761807081298,5.12629957,195.08,195.02,0.71]
[1761807081831,2.02280637,195.04,194.98,0.71]
[1761807082123,2.02280637,195.06,194.99,2.02280637]
[1761807082299,17.94155484,195.08,195.0,2.02280637]
[1761807082300,7.14910594,195.08,195.0,2.02280637]
[1761807082494,5.84585542,195.07,195.0,2.02280637]
[1761807082721,2.02280637,195.06,195.01,0.72]
[1761807082925,2.02280637,195.04,194.98,0.72]
[1761807083108,2.02280637,195.07,195.0,2.02280637]
[1761807083417,5.78629957,195.08,194.98,0.72]
[1761807083418,7.14910594,195.08,195.01,2.74280637]
[1761807083803,2.02280637,195.06,195.01,0.72]
[1761807084013,2.02280637,195.06,194.99,2.02280637]
[1761807084223,2.02280637,195.07,195.02,0.72]
[1761807084419,7.14942866,195.07,195.02,0.72]
[1761807084719,2.68280637,195.06,195.0,0.72]
[1761807085097,2.02280637,195.06,195.0,0.72]
[1761807086402,5.12689054,195.05,195.0,0.72]
[1761807086644,2.02280637,195.04,194.98,0.72]
[1761807086845,7.14969691,195.05,194.99,0.72]
[1761807088206,5.12689054,195.05,194.99,0.72]
[1761807089139,7.14969691,195.05,194.99,0.72]
[1761807089716,2.68280637,195.04,194.98,61.6]
[1761807090114,2.02280637,195.01,194.95,72.25098926]
[1761807090315,2.02280637,195.01,194.96,0.72]
[1761807090514,2.02280637,195.02,194.96,0.72]
[1761807090714,5.12794215,195.01,194.96,0.72]
[1761807091410,5.78794215,195.01,194.96,0.72]
[1761807091935,2.02280637,195.03,194.96,0.72]
[1761807092107,2.02280637,195.03,194.96,2.74280637]
[1761807092304,27.74169911,195.05,194.97,2.88496794]
[1761807092721,28.40169911,195.05,194.98,0.72]
[1761807092921,41.21892546,195.05,194.98,0.72]
[1761807093122,2.02280637,195.04,194.98,0.72]
[1761807093325,2.02280637,195.03,194.98,0.72]
[1761807093640,2.02280637,195.03,194.96,11.81163406]
[1761807093641,2.02280637,195.01,194.96,0.72]
[1761807093934,2.02280637,195.0,194.97,0.72]
[1761807094114,2.02280637,195.01,194.97,0.72]
[1761807094311,0.66,195.03,194.97,0.72]
[1761807094524,2.68280637,195.03,194.97,0.72]
[1761807094722,5.12767921,195.02,194.97,0.72]
[1761807094928,2.68280637,195.01,194.95,0.72]
[1761807095149,2.02280637,194.99,194.92,10.50882769]
[1761807095529,2.02280637,194.98,194.92,10.50882769]
[1761807095840,2.02280637,194.98,194.93,0.72]
[1761807096137,2.68280637,194.99,194.93,0.72]
[1761807096839,5.12873115,194.98,194.93,0.72]
[1761807097042,7.15153752,194.98,194.93,0.72]
[1761807097228,7.81153752,194.98,194.93,0.72]
[1761807097429,2.02280637,194.99,194.93,0.72]
[1761807097620,5.7884017,195.0,194.93,0.72]
[1761807097621,7.81120807,195.0,194.93,0.72]
[1761807098209,0.66,195.05,194.96,11.81163406]
[1761807098409,5.12690702,195.05,194.99,2.02280637]
[1761807098725,7.80971339,195.05,194.98,11.81163406]
[1761807099042,7.80971339,195.05,194.98,9.78882769]
[1761807099346,7.80971339,195.05,194.99,0.72]
[1761807100637,20.62693974,195.05,194.99,0.72]
[1761807100934,5.12741629,195.03,194.99,0.72]
[1761807101147,7.149971,195.04,194.99,0.72]
[1761807102341,5.78716463,195.04,194.99,0.72]
[1761807102528,7.809971,195.04,194.99,0.72]
[1761807102728,2.68280637,195.03,194.96,0.72]
[1761807102944,7.15048558,195.02,194.96,0.72]
[1761807103326,2.68280637,195.01,194.95,9.78882769]
[1761807103733,2.68280637,195.01,194.95,10.50882769]
[1761807104218,2.68280637,195.01,194.95,0.72]
[1761807105045,5.12820512,195.0,194.95,0.72]
[1761807105243,2.02280637,194.99,194.91,0.2]
[1761807105433,2.02280637,194.97,194.91,0.92]
[1761807105633,2.02280637,194.97,194.91,1.06216157]
[1761807106034,2.02280637,194.96,194.91,1.06216157]
[1761807106345,2.68280637,194.97,194.91,1.06216157]
[1761807107253,2.02280637,194.95,194.91,0.2]
[1761807107456,2.02280637,194.92,194.91,0.2]
[1761807109045,0.66,194.94,194.91,0.2]
[1761807109357,2.02280637,194.93,194.91,0.2]
[1761807109520,2.02280637,194.92,194.91,0.2]
[1761807113148,33.4151432,194.96,194.91,0.2]
[1761807113149,5.12864545,194.99,194.92,9.78882769]
[1761807113362,2.02280637,194.98,194.92,9.78882769]
[1761807113564,2.02280637,194.98,194.93,0.71]
[1761807113726,2.02280637,194.96,194.92,0.14216157]
[1761807113925,2.02280637,194.96,194.92,0.85216157]
[1761807114233,2.02280637,194.96,194.92,0.71]
[1761807114451,7.15187049,194.97,194.92,0.71]
[1761807114617,7.83187049,194.97,194.92,0.71]
[1761807115944,7.15187049,194.97,194.92,0.71]
[1761807116267,9.78882769,195.06,194.92,2.73280637]
[1761807116569,2.02280637,195.01,194.94,11.81163406]
[1761807116726,2.02280637,195.0,194.93,2.73280637]
[1761807117248,2.02280637,195.0,194.93,2.02280637]
[1761807117442,2.02280637,195.0,194.94,0.71]
[1761807117663,2.02280637,195.0,194.94,2.73280637]
[1761807117946,5.12846812,194.99,194.94,2.73280637]
[1761807118140,2.02280637,195.0,194.94,0.71]
[1761807118346,2.70280637,195.01,194.95,0.71]
[1761807119228,5.12829412,195.0,194.95,0.71]
[1761807119646,5.80829412,195.0,194.95,0.71]
[1761807119853,5.12829412,195.0,194.95,0.71]
[1761807120633,5.80829412,195.0,194.95,0.71]
[1761807121235,5.12829412,195.0,194.95,0.71]
[1761807121656,3.16115426,195.01,194.95,0.71]
[1761807121885,8.28857074,195.03,194.96,3.16115426]
[1761807122089,3.84115426,195.05,194.98,3.16115426]
[1761807122248,3.16115426,195.06,194.99,3.16115426]
[1761807122452,8.28789959,195.06,195.0,0.71]
[1761807123165,8.96789959,195.06,195.0,0.71]
[1761807123667,3.16115426,195.05,195.0,0.71]
[1761807124058,5.12674533,195.06,195.0,0.71]
[1761807124273,0.68,195.05,195.0,0.71]
[1761807124674,8.28789959,195.06,195.0,0.71]
[1761807126177,8.2875542,195.07,195.01,3.16115426]
[1761807126476,5.12639994,195.07,195.01,3.16115426]
[1761807126672,5.12639994,195.07,195.02,0.71]
[1761807127449,5.12626286,195.08,195.03,3.16115426]
[1761807127655,3.16115426,195.13,195.06,3.16115426]
[1761807127975,8.28593818,195.14,195.07,3.87115426]
[1761807128173,5.12478392,195.14,195.07,3.87115426]
[1761807128356,8.96544734,195.15,195.08,3.87115426]
[1761807128559,8.28544734,195.15,195.09,3.16115426]
[1761807128757,3.16115426,195.16,195.09,0.71]
[1761807129086,3.16115426,195.15,195.09,0.71]
[1761807129379,3.16115426,195.15,195.07,0.14216157]
[1761807129380,3.16115426,195.13,195.07,0.14216157]
[1761807129679,8.28600502,195.13,195.07,0.14216157]
[1761807129885,5.12485076,195.13,195.07,0.85216157]
[1761807130083,35.5419367,195.23,195.07,0.85216157]
[1761807130084,4.39302196,195.25,195.12,3.16115426]
[1761807130384,3.16115426,195.24,195.17,3.16115426]
[1761807130553,3.16115426,195.24,195.14,0.14216157]
[1761807130554,3.26115426,195.25,195.18,3.87115426]
[1761807130755,0.1,195.25,195.19,3.87115426]
[1761807130980,5.22165097,195.25,195.19,3.87115426]
[1761807131379,5.22165097,195.25,195.19,8.22517927]
[1761807131763,5.22165097,195.25,195.2,7.51517927]
[1761807131976,5.22165097,195.25,195.2,8.22517927]
[1761807132289,5.22165097,195.25,195.2,7.51517927]
[1761807132460,0.1,195.25,195.2,0.14216157]
[1761807132662,0.68,195.24,195.2,0.14216157]
[1761807132857,5.2216539,195.25,195.2,0.85216157]
[1761807132858,5.9016539,195.25,195.2,0.85216157]
[1761807133078,5.2216539,195.25,195.2,0.85216157]
[1761807133280,5.9216539,195.25,195.2,0.71]
[1761807133870,0.7,195.24,195.18,18.01400696]
[1761807134065,0.7,195.24,194.97,30.8]
[1761807134066,7.51517927,195.22,195.1,0.51255766]
[1761807134272,7.51517927,195.22,195.14,37.89600696]
[1761807134676,8.21517927,195.21,195.14,38.60600696]
[1761807135069,7.51517927,195.19,195.14,21.302]
[1761807135271,7.51517927,195.19,195.12,8.22517927]
[1761807135472,7.51517927,195.19,195.12,18.01400696]
[1761807135888,7.51517927,195.19,195.13,0.71]
[1761807136093,5.12323055,195.19,195.13,0.71]
[1761807136277,12.63840982,195.19,195.13,0.71]
[1761807136787,5.12323055,195.19,195.13,0.71]
[1761807136955,7.51517927,195.19,195.13,0.71]
[1761807137160,12.63840104,195.19,195.13,0.71]
[1761807137461,12.63840104,195.19,195.13,10.64098926]
[1761807137667,7.51517927,195.19,195.13,0.85216157]
[1761807137977,7.51517927,195.19,195.13,10.64098926]
[1761807138184,7.51517927,195.21,195.15,0.14216157]
[1761807138390,12.63788632,195.21,195.15,0.14216157]
[1761807138569,5.12270705,195.21,195.15,8.36734084]
[1761807139098,7.51517927,195.2,195.15,0.85216157]
[1761807139280,7.51517927,195.19,195.14,9.78882769]
[1761807139479,7.51517927,195.18,195.13,0.85216157]
[1761807139664,0.7,195.23,195.14,9.78882769]
[1761807139998,7.51517927,195.21,195.16,9.78882769]
[1761807140381,7.51517927,195.21,195.16,10.49882769]
[1761807140583,7.51517927,195.2,195.16,0.71]
[1761807141197,13.33795286,195.21,195.16,0.71]
[1761807142199,7.51517927,195.2,195.16,0.71]
[1761807143570,5.12192417,195.24,195.17,0.14216157]
[1761807143875,0.1,195.25,195.18,17.30400696]
[1761807143876,12.73685051,195.25,195.18,17.30400696]
[1761807144087,12.73685051,195.25,195.19,0.68]
[1761807144383,7.51517927,195.24,195.19,0.68]
[1761807144614,12.63715018,195.24,195.19,0.68]
[1761807145093,13.34715018,195.24,195.19,0.68]
[1761807145281,7.51517927,195.22,195.17,9.93098926]
[1761807145779,8.22517927,195.22,195.17,10.61098926]
[1761807146175,7.51517927,195.22,195.17,0.68]
[1761807146479,7.51517927,195.19,195.15,10.56]
[1761807146992,8.22517927,195.19,195.15,10.56]
[1761807147297,8.22517927,195.19,195.14,9.93098926]
[1761807147607,8.22517927,195.19,195.14,10.61098926]
[1761807148281,7.51517927,195.19,195.15,0.68]
[1761807148483,8.22517927,195.19,195.15,0.68]
[1761807148798,13.34842353,195.19,195.14,9.93098926]
[1761807148997,13.34842353,195.19,195.14,10.61098926]
[1761807149397,12.63842353,195.19,195.15,0.68]
[1761807149621,0.71,195.21,195.15,0.68]
[1761807149791,7.51517927,195.2,195.15,0.68]
[1761807150110,5.12215904,195.24,195.16,9.78882769]
[1761807150284,7.51517927,195.22,195.16,9.78882769]
[1761807150485,7.51517927,195.22,195.17,0.68]
[1761807150891,12.63767605,195.22,195.17,0.68]
[1761807151588,7.51517927,195.2,195.14,9.93098926]
[1761807151799,0.71,195.21,195.14,72.21098926]
[1761807151978,7.51517927,195.2,195.16,9.78882769]
[1761807152195,0.71,195.21,195.16,9.78882769]
[1761807152389,8.22517927,195.21,195.16,10.46882769]
[1761807152788,7.51517927,195.19,195.14,61.74216157]
[1761807153095,7.51517927,195.2,195.14,61.74216157]
[1761807153300,3.15496863,195.2,195.15,0.68]
[1761807153804,3.86496863,195.2,195.15,0.68]
[1761807154120,3.15496863,195.2,195.16,9.78882769]
[1761807154700,8.27796328,195.2,195.16,9.78882769]
[1761807155085,3.15496863,195.2,195.16,9.78882769]
[1761807155811,8.27795778,195.2,195.16,9.78882769]
[1761807156009,8.27795778,195.2,195.14,0.68]
[1761807156010,3.15496863,195.18,195.14,0.68]
[1761807156510,3.15496863,195.19,195.14,0.68]
[1761807156909,8.27824057,195.19,195.14,0.68]
[1761807157113,5.12327194,195.19,195.14,0.68]
[1761807157282,3.15496863,195.19,195.14,0.68]
[1761807157488,3.15496863,195.2,195.14,0.68]
[1761807159318,0.71,195.19,195.13,3.2971302]
[1761807159486,0.71,195.19,195.13,3.9771302]
[1761807159684,3.86496863,195.19,195.13,0.82216157]
[1761807160922,8.27844439,195.18,195.13,0.82216157]
[1761807161095,3.15496863,195.15,195.1,0.82216157]
[1761807161294,3.15496863,195.16,195.11,20.32882769]
[1761807161918,3.15496863,195.16,195.11,21.00882769]
[1761807161919,3.86496863,195.16,195.11,21.00882769]
[1761807162299,3.15496863,195.17,195.11,20.32882769]
[1761807162497,0.71,195.16,195.11,11.22]
[1761807162726,3.86496863,195.16,195.11,10.54]
[1761807162932,5.12426338,195.15,195.11,10.54]
[1761807163089,8.98923201,195.15,195.11,10.54]
[1761807164103,5.83426338,195.15,195.11,10.54]
[1761807164304,3.86496863,195.14,195.08,9.78882769]
[1761807164515,3.86496863,195.14,195.08,20.32882769]
[1761807164814,3.15496863,195.13,195.08,20.32882769]
[1761807165286,3.86496863,195.13,195.08,21.00882769]
[1761807165911,8.98994773,195.13,195.08,21.00882769]
[1761807166795,8.98994773,195.13,195.08,11.22]
[1761807166995,8.98994773,195.13,195.06,3.2971302]
[1761807166996,3.15496863,195.11,195.06,9.93098926]
[1761807167204,3.15496863,195.1,195.06,9.93098926]
[1761807167505,0.71,195.1,195.06,9.93098926]
[1761807167718,3.15496863,195.11,195.06,10.61098926]
[1761807167916,8.99052968,195.11,195.06,10.61098926]
[1761807168918,0.71,195.1,195.06,9.93098926]
[1761807169118,0.71,195.1,195.06,10.61098926]
[1761807170105,8.28052968,195.11,195.06,10.61098926]
[1761807170302,20.592,195.19,195.07,0.68]
[1761807170626,3.15496863,195.16,195.09,3.2971302]
[1761807170803,3.15496863,195.16,195.1,20.32882769]
[1761807171005,3.15496863,195.17,195.1,24.16379632]
[1761807171306,3.15496863,195.17,195.11,0.68]
[1761807171505,3.86496863,195.17,195.11,0.68]
[1761807171896,3.15496863,195.16,195.11,0.68]
[1761807172102,8.98915071,195.16,195.11,0.68]
[1761807172631,0.67,195.15,195.11,0.68]
[1761807173309,8.27915071,195.16,195.11,0.68]
[1761807173519,5.12418208,195.16,195.11,0.82216157]
[1761807174124,8.94873536,195.17,195.11,0.82216157]
[1761807175526,5.12376673,195.17,195.11,3.9771302]
[1761807175727,5.12376673,195.17,195.12,0.65]
[1761807176298,8.27873536,195.17,195.12,0.65]
[1761807176536,8.94873536,195.17,195.12,0.65]
[1761807176716,8.27873536,195.17,195.12,0.65]
[1761807177027,0.67,195.16,195.12,0.65]
[1761807177626,3.82496863,195.16,195.11,0.14216157]
[1761807177808,3.82496863,195.16,195.11,0.79216157]
[1761807178009,3.15496863,195.14,195.09,61.6]
[1761807178208,3.15496863,195.14,195.1,9.93098926]
[1761807178427,0.67,195.14,195.1,10.58098926]
[1761807179904,3.15496863,195.16,195.1,9.93098926]
[1761807180108,3.15496863,195.16,195.11,0.65]
[1761807180304,8.27898046,195.16,195.11,0.65]
[1761807180637,0.67,195.15,195.11,0.65]
[1761807181007,8.27791944,195.2,195.14,9.78882769]
[1761807181207,3.15496863,195.22,195.15,20.47098926]
[1761807181415,5.12194896,195.24,195.18,3.15496863]
[1761807181634,5.12194896,195.24,195.19,10.54]
[1761807181939,0.67,195.23,195.19,10.54]
[1761807182130,0.67,195.23,195.19,11.19]
[1761807182328,5.1221659,195.23,195.19,11.19]
[1761807182712,5.7921659,195.23,195.19,10.54]
[1761807182927,2.68802512,195.22,195.14,0.65]
[1761807183213,0.1,195.25,195.2,0.14216157]
[1761807183415,0.1,195.25,195.22,11.94901438]
[1761807183621,0.1,195.25,195.23,12.55802512]
[1761807183920,0.1,195.25,195.23,13.20802512]
[1761807184118,0.1,195.25,195.24,0.65]
[1761807184610,0.1,195.25,195.23,10.54]
[1761807184818,0.1,195.25,195.22,10.54]
[1761807185017,0.1,195.25,195.22,13.20802512]
[1761807185220,0.1,195.25,195.23,0.65]
[1761807186242,0.1,195.25,195.22,12.55802512]
[1761807186421,0.1,195.25,195.22,11.19]
[1761807186923,5.89174345,195.25,195.22,10.54]
[1761807187930,5.22174345,195.25,195.19,2.81018669]
[1761807188113,5.79203306,195.24,195.2,10.54]
[1761807189035,0.1,195.25,195.2,10.54]
[1761807189236,5.22170619,195.25,195.2,11.19]
[1761807189437,5.89170619,195.25,195.2,11.19]
[1761807190235,5.22170619,195.25,195.2,11.19]
[1761807190423,5.89170619,195.25,195.2,11.19]
[1761807190834,5.22170619,195.25,195.2,11.19]
[1761807191142,7.90973131,195.25,195.2,10.54]
[1761807191347,5.89170619,195.25,195.21,0.65]
[1761807192424,5.22170619,195.25,195.2,10.54]
[1761807192639,0.67,195.24,195.2,10.54]
[1761807193038,7.90973131,195.25,195.2,11.19]
[1761807193531,7.90973131,195.25,195.21,10.64098926]
[1761807193532,0.1,195.25,195.21,10.64098926]
[1761807193758,0.1,195.25,195.22,2.01802512]
[1761807193951,0.1,195.25,195.22,2.72802512]
[1761807194258,0.1,195.25,195.24,11.94901438]
[1761807194747,0.1,195.25,195.24,12.65901438]
[1761807195267,0.1,195.25,195.24,10.64098926]
[1761807195843,0.8,195.25,195.22,10.54]
[1761807196048,0.1,195.25,195.22,10.54]
[1761807196361,0.1,195.25,195.22,11.25]
[1761807197247,5.22163902,195.25,195.22,11.25]
[1761807197471,0.7,195.24,195.22,10.54]
[1761807197646,2.01802512,195.24,195.22,10.54]
[1761807198374,7.93978525,195.25,195.22,10.54]
[1761807200382,5.92176013,195.25,195.22,10.54]
[1761807200882,5.22176013,195.25,195.22,10.54]
[1761807201171,0.7,195.24,195.22,10.54]
[1761807201875,5.22176013,195.25,195.22,10.54]
[1761807202058,5.92176013,195.25,195.22,10.54]
[1761807202257,5.92176013,195.25,195.19,0.85216157]
[1761807202258,0.7,195.24,195.19,0.85216157]
[1761807202574,2.01802512,195.21,195.19,10.54]
[1761807203069,0.7,195.24,195.19,10.54]
[1761807203070,2.01802512,195.22,195.19,10.54]
[1761807203476,2.01802512,195.22,195.19,11.24]
[1761807203654,2.01802512,195.24,195.2,10.63098926]
[1761807203857,2.79802512,195.25,195.2,10.63098926]
[1761807205056,0.1,195.25,195.21,0.7]
[1761807205262,0.1,195.25,195.22,20.32882769]
[1761807205779,0.1,195.25,195.23,0.7]
[1761807205957,0.1,195.25,195.22,20.32882769]
[1761807206279,0.1,195.25,195.22,21.02882769]
[1761807206451,0.1,195.25,195.22,20.32882769]
[1761807206646,2.79802512,195.25,195.22,20.32882769]
[1761807206951,7.2397441,195.25,195.22,20.32882769]
[1761807207380,7.9197441,195.25,195.22,10.54]
[1761807207698,0.68,195.24,195.2,72.14]
[1761807208584,0.1,195.25,195.21,10.63098926]
[1761807208886,0.78,195.25,195.21,9.93098926]
[1761807209350,5.90164001,195.25,195.21,9.93098926]
[1761807209546,0.1,195.25,195.22,0.7]
[1761807209784,0.1,195.25,195.2,74.15802512]
[1761807209785,0.68,195.24,195.2,72.14]
[1761807209980,2.01802512,195.21,195.16,9.78882769]
[1761807210175,2.01802512,195.19,195.16,9.78882769]
[1761807210781,2.01802512,195.18,195.15,0.7]
[1761807210954,2.01802512,195.18,195.15,0.84216157]
[1761807211147,2.01802512,195.19,195.15,0.7]
[1761807211569,2.01802512,195.2,195.15,0.7]
[1761807211778,2.01802512,195.19,195.15,0.7]
[1761807211979,2.01802512,195.19,195.15,0.84216157]
[1761807212168,2.01802512,195.2,195.16,10.54]
[1761807212366,7.1409647,195.21,195.16,10.54]
[1761807212565,7.1409647,195.21,195.16,11.24]
[1761807213077,2.01802512,195.2,195.16,11.24]
[1761807213296,2.01802512,195.19,195.16,10.54]
[1761807213456,7.1413959,195.19,195.16,10.54]
[1761807213956,0.1,195.25,195.19,30.38082769]
[1761807214167,0.1,195.25,195.21,9.78882769]
[1761807214168,5.22172304,195.25,195.21,9.78882769]
[1761807214380,7.23974816,195.25,195.21,10.48882769]
[1761807214680,7.91974816,195.25,195.2,10.68216157]
[1761807214853,2.11802512,195.25,195.21,9.78882769]
[1761807215055,0.1,195.25,195.22,0.14216157]
[1761807215366,0.1,195.25,195.22,0.7]
[1761807215559,2.69802512,195.24,195.2,10.54]
[1761807215758,2.01802512,195.23,195.2,10.54]
[1761807215961,2.69802512,195.23,195.2,10.54]
[1761807216195,0.68,195.22,195.2,10.54]
[1761807216363,2.01802512,195.21,195.16,0.14216157]
[1761807216569,2.01802512,195.19,195.16,10.54]
[1761807216881,2.01802512,195.17,195.13,10.54]
[1761807217299,2.69802512,195.17,195.13,10.54]
[1761807217594,2.01802512,195.16,195.12,9.78882769]
[1761807217892,2.01802512,195.16,195.12,10.48882769]
[1761807218180,5.12393338,195.17,195.12,0.7]
[1761807218386,5.80393338,195.17,195.12,0.7]
[1761807219186,0.68,195.16,195.11,10.54]
[1761807219587,5.04988661,195.15,195.12,9.93098926]
[1761807219885,5.04988661,195.15,195.1,9.78882769]
[1761807220199,5.04988661,195.15,195.11,0.14216157]
[1761807220354,5.04988661,195.15,195.11,0.84216157]
[1761807221893,5.04988661,195.17,195.13,0.14216157]
[1761807222281,25.64188661,195.24,195.14,14.8387143]
[1761807222282,10.17306272,195.2,195.14,14.8387143]
[1761807222487,10.17306272,195.2,195.15,0.7]
[1761807222889,10.85306272,195.2,195.15,0.7]
[1761807223064,5.04988661,195.18,195.14,9.78882769]